bitfinex/quotes_BTCUSD_20251202
["timestamp","ask_amount","ask_price","bid_price","bid_amount"]
[1764708962080,0.021796,91013.0,91012.0,0.00023566]
[1764708962287,0.64436482,91013.0,91012.0,0.00023566]
[1764708962493,0.64336482,91013.0,91012.0,0.00023566]
[1764708962622,0.021796,91001.0,90980.0,0.0002]
[1764708962827,0.56459795,90991.0,90980.0,0.0002]
[1764708963028,0.62027795,90991.0,90980.0,0.0002]
[1764708963255,0.67754795,90991.0,90980.0,0.0002]
[1764708964459,0.457746,90991.0,90981.0,0.23081599]
[1764708964804,0.458746,90991.0,90985.0,0.01099082]
[1764708964977,0.476146,90991.0,90981.0,0.0109913]
[1764708965118,0.476146,90991.0,90980.0,0.01119142]
[1764708965325,0.474246,90991.0,90982.0,0.01099118]
[1764708965522,0.476246,90991.0,90982.0,0.01099118]
[1764708965945,0.476246,90991.0,90980.0,0.01119142]
[1764708966146,0.476246,90991.0,90980.0,0.0002]
[1764708966364,0.3041451,90981.0,90980.0,0.0002]
[1764708966547,0.24164628,90971.0,90970.0,0.0002]
[1764708966797,0.26255628,90971.0,90970.0,0.0002]
[1764708966953,0.34158628,90971.0,90970.0,0.0002]
[1764708967339,0.66458628,90971.0,90970.0,0.0002]
[1764708968661,0.66458628,90971.0,90970.0,0.00143779]
[1764708969073,0.64279028,90971.0,90970.0,0.00143779]
[1764708969285,0.427336,90971.0,90970.0,0.00143779]
[1764708969497,0.042706,90971.0,90970.0,0.00143779]
[1764708969718,0.044706,90971.0,90970.0,0.00143779]
[1764708969930,0.044466,90971.0,90970.0,0.00143779]
[1764708971097,0.001,90971.0,90970.0,0.00143779]
[1764708971373,0.0184,90971.0,90970.0,0.00143779]
[1764708971559,0.040196,90971.0,90970.0,0.00143779]
[1764708972147,0.092926,90971.0,90970.0,0.00143779]
[1764708972372,0.040196,90971.0,90970.0,0.00143779]
[1764708972576,0.001,90971.0,90970.0,0.00143779]
[1764708972774,0.01744,90972.0,90971.0,0.21985028]
[1764708973726,0.0218,90973.0,90971.0,0.21985028]
[1764708975068,0.021796,90978.0,90977.0,0.21983385]
[1764708975297,0.056156,90987.0,90986.0,0.21981403]
[1764708975943,0.06252299,91019.0,90986.0,0.21981403]
[1764708975944,0.02578,91006.0,91005.0,0.0109884]
[1764708976122,0.021796,91010.0,91009.0,0.21975848]
[1764708976537,0.021796,91010.0,91009.0,0.22014598]
[1764708977923,0.104246,91010.0,91009.0,0.0003875]
[1764708978149,0.1317155,91010.0,91009.0,0.0003875]
[1764708978588,0.1317155,91010.0,91009.0,0.0023875]
[1764708978765,0.1317155,91010.0,91009.0,0.0003875]
[1764708978970,0.1317155,91010.0,91009.0,0.0013875]
[1764708979427,0.1317155,91010.0,91009.0,0.0003875]
[1764708979676,0.1317155,91010.0,91009.0,0.0013875]
[1764708982902,0.104246,91010.0,91009.0,0.0013875]
[1764708984977,0.025866,91010.0,91009.0,0.22114598]
[1764708985168,0.02189,91014.0,91013.0,0.21974882]
[1764708986089,0.021796,91024.0,91023.0,0.21972468]
[1764708986536,0.021796,91023.0,91022.0,0.23071339]
[1764708986685,0.022576,91023.0,91022.0,0.23071339]
[1764708986927,0.101716,91023.0,91022.0,0.23071339]
[1764708987761,0.022576,91023.0,91022.0,0.23071339]
[1764708988301,0.101716,91023.0,91022.0,0.21972709]
[1764708989485,0.00078,91023.0,91022.0,0.21972709]
[1764708989613,0.021796,91023.0,91022.0,0.21972709]
[1764708989848,0.104246,91023.0,91022.0,0.21972709]
[1764708990041,0.021796,91014.0,91013.0,0.6423884]
[1764708990243,0.021796,91014.0,91009.0,0.01137542]
[1764708990244,0.021796,91012.0,91011.0,0.01098768]
[1764708990492,0.021796,91012.0,91011.0,0.23074133]
[1764708990651,0.021796,91012.0,91009.0,0.0003875]
[1764708990652,0.047536,91010.0,91009.0,0.0003875]
[1764708990865,0.047536,91010.0,91009.0,0.22014598]
[1764708991070,0.104466,91010.0,91009.0,0.22014598]
[1764708992088,0.104466,91010.0,91009.0,0.22114598]
[1764708992412,0.104466,91010.0,91009.0,0.0013875]
[1764708992621,0.1319355,91010.0,91009.0,0.22114598]
[1764708993158,0.0174,91025.0,91013.0,0.01098744]
[1764708993375,0.021796,91015.0,91013.0,0.2307358]
[1764708993573,0.021796,91015.0,91014.0,0.21974641]
[1764708993777,0.08661,91014.0,91011.0,0.21975361]
[1764708993997,0.040316,91012.0,91011.0,0.23074129]
[1764708994399,0.040316,91012.0,91009.0,0.22014598]
[1764708994400,0.021796,91010.0,91009.0,0.22014598]
[1764708994624,0.022706,91010.0,91009.0,0.22014598]
[1764708994927,0.095946,91010.0,91009.0,0.22014598]
[1764708995528,0.022706,91010.0,91009.0,0.22014598]
[1764708997059,0.01774,91012.0,91011.0,0.21975365]
[1764708997610,0.0811,91023.0,91022.0,0.21972709]
[1764708997831,0.0174,91023.0,91022.0,0.21972709]
[1764708998039,0.045756,91023.0,91022.0,0.21972709]
[1764708998460,0.3008081,91030.0,91020.0,0.23071629]
[1764708998461,0.021796,91030.0,91026.0,0.21971744]
[1764708998848,0.02746377,91029.0,91026.0,0.21971744]
[1764708999066,0.02746377,91029.0,91014.0,0.01098732]
[1764708999067,0.054136,91027.0,91014.0,0.01098732]
[1764708999285,0.054136,91027.0,91001.0,0.03687]
[1764708999286,0.021796,91011.0,91010.0,0.23073928]
[1764708999493,0.126576,91011.0,91010.0,0.23073928]
[1764708999979,0.091136,91011.0,91010.0,0.23073928]
[1764709000331,0.02746769,91016.0,91015.0,0.21974399]
[1764709000541,0.021796,91031.0,91030.0,0.01098538]
[1764709000881,0.073716,91031.0,91030.0,0.23069316]
[1764709001706,0.109156,91031.0,91030.0,0.23069316]
[1764709002818,0.02902828,91058.0,91055.0,0.01098237]
[1764709003037,0.0811,91077.0,91030.0,0.14584235]
[1764709003038,0.02322071,91080.0,91076.0,0.01097984]
[1764709003252,0.021796,91077.0,91076.0,0.01097984]
[1764709004101,0.021912,91077.0,91076.0,0.01097984]
[1764709004914,0.000116,91077.0,91076.0,0.01097984]
[1764709005123,0.000116,91077.0,91076.0,0.14035984]
[1764709005597,0.0004,91110.0,91076.0,0.14035984]
[1764709005598,0.0004,91110.0,91109.0,0.21951728]
[1764709005815,0.00051607,91110.0,91109.0,0.34889728]
[1764709006040,0.00051607,91110.0,91109.0,0.3772574]
[1764709006255,0.00051607,91110.0,91109.0,0.2968774]
[1764709006852,0.00051607,91110.0,91109.0,0.21951728]
[1764709007330,0.02231207,91110.0,91109.0,0.22051728]
[1764709007527,0.10923207,91110.0,91109.0,0.001]
[1764709007967,0.08743607,91110.0,91109.0,0.001]
[1764709008176,0.10923207,91110.0,91109.0,0.001]
[1764709008731,0.13667142,91110.0,91109.0,0.001]
[1764709009268,0.15407142,91110.0,91109.0,0.001]
[1764709009673,0.12663207,91110.0,91109.0,0.001]
[1764709009867,0.10483607,91110.0,91108.0,0.21951746]
[1764709010226,0.021796,91105.0,91104.0,0.23050371]
[1764709010357,0.022646,91105.0,91104.0,0.23050371]
[1764709010556,0.103746,91105.0,91104.0,0.23050371]
[1764709011213,0.021796,91091.0,91088.0,0.02837839]
[1764709011440,0.021796,91086.0,91085.0,0.01097875]
[1764709011733,0.021796,91089.0,91088.0,0.23054439]
[1764709012105,0.073716,91089.0,91088.0,0.23054439]
[1764709012476,0.109156,91089.0,91088.0,0.01097839]
[1764709012680,0.073716,91089.0,91088.0,0.01097839]
[1764709013411,0.073716,91089.0,91088.0,0.01197839]
[1764709014315,0.073716,91089.0,91088.0,0.01397839]
[1764709017296,0.109156,91089.0,91088.0,0.01397839]
[1764709019361,0.109156,91089.0,91088.0,0.003]
[1764709019561,0.432156,91089.0,91088.0,0.003]
[1764709020717,0.449556,91089.0,91088.0,0.003]
[1764709020929,0.449556,91089.0,91088.0,0.002]
[1764709021280,0.41036,91089.0,91088.0,0.002]
[1764709021491,0.449556,91089.0,91088.0,0.002]
[1764709021659,0.42776,91089.0,91088.0,0.002]
[1764709021851,0.0109802,91073.0,91065.0,0.01098116]
[1764709022216,0.0109802,91073.0,91063.0,0.0109814]
[1764709022217,0.021796,91064.0,91063.0,0.0109814]
[1764709022372,0.051866,91064.0,91063.0,0.0109814]
[1764709022570,0.02375,91070.0,91067.0,0.01098092]
[1764709022770,0.052136,91068.0,91063.0,0.21962643]
[1764709023105,0.051836,91064.0,91063.0,0.21974243]
[1764709023408,0.051836,91064.0,91063.0,0.001116]
[1764709023618,0.108946,91064.0,91063.0,0.001116]
[1764709023815,0.108946,91064.0,91063.0,0.000116]
[1764709024375,0.021796,91073.0,91072.0,0.21960646]
[1764709024694,0.041096,91076.0,91075.0,0.21959923]
[1764709025096,0.021796,91076.0,91075.0,0.22519407]
[1764709025336,0.045546,91084.0,91083.0,0.21957994]
[1764709025917,0.045546,91084.0,91078.0,0.01097959]
[1764709025918,0.01097923,91081.0,91073.0,0.23058393]
[1764709026115,0.021796,91075.0,91074.0,0.23058092]
[1764709026654,0.02375,91084.0,91082.0,0.21958235]
[1764709026796,0.02375,91084.0,91083.0,0.22057994]
[1764709027000,0.045546,91084.0,91083.0,0.22057994]
[1764709027200,0.039,91090.0,91086.0,0.21957271]
[1764709027201,0.021796,91087.0,91086.0,0.21957271]
[1764709027530,0.0216,91090.0,91089.0,0.21956547]
[1764709027531,0.043396,91090.0,91089.0,0.21956547]
[1764709029543,0.021796,91089.0,91084.0,0.01097887]
[1764709029729,0.021796,91087.0,91086.0,0.23055134]
[1764709030547,0.037136,91087.0,91086.0,0.23055134]
[1764709030911,0.113206,91087.0,91086.0,0.23055134]
[1764709032251,0.113206,91087.0,91084.0,0.23055399]
[1764709032252,0.113206,91087.0,91084.0,0.21957705]
[1764709032487,0.04904538,91090.0,91084.0,0.21957705]
[1764709032488,0.04924258,91086.0,91085.0,0.21957512]
[1764709032617,0.099096,91086.0,91085.0,0.21957512]
[1764709032819,0.01097887,91084.0,91078.0,0.01097959]
[1764709033063,0.021796,91076.0,91075.0,0.23057755]
[1764709033476,0.113196,91076.0,91075.0,0.23057755]
[1764709033692,0.036516,91076.0,91075.0,0.23057755]
[1764709035682,0.036516,91076.0,91075.0,0.23157755]
[1764709036486,0.0914,91076.0,91075.0,0.001]
[1764709036692,0.021796,91082.0,91079.0,0.01097947]
[1764709037015,0.021796,91083.0,91080.0,0.01097935]
[1764709037214,0.021796,91083.0,91079.0,0.23056869]
[1764709037215,0.021796,91076.0,91075.0,0.001]
[1764709037413,0.070436,91076.0,91075.0,0.22059923]
[1764709037761,0.113536,91076.0,91075.0,0.22059923]
[1764709038070,0.113536,91076.0,91075.0,0.21959923]
[1764709038757,0.113536,91076.0,91075.0,0.22059923]
[1764709040722,0.021796,91084.0,91083.0,0.21957994]
[1764709041348,0.021796,91090.0,91089.0,0.21956547]
[1764709041511,0.0216,91095.0,91094.0,0.21955342]
[1764709041714,0.0216,91095.0,91091.0,0.23053836]
[1764709041715,0.043396,91095.0,91091.0,0.23053836]
[1764709041914,0.070436,91090.0,91089.0,0.23054374]
[1764709042371,0.113536,91090.0,91089.0,0.21956547]
[1764709042949,0.070436,91090.0,91089.0,0.21956547]
[1764709043207,0.021796,91087.0,91086.0,0.23054652]
[1764709043702,0.021796,91087.0,91083.0,0.23055893]
[1764709043703,0.021796,91084.0,91083.0,0.23055893]
[1764709043902,0.069476,91084.0,91083.0,0.23055893]
[1764709045094,0.113526,91084.0,91083.0,0.23055893]
[1764709045305,0.113526,91084.0,91083.0,0.23155893]
[1764709045470,0.113526,91084.0,91083.0,0.01197899]
[1764709045685,0.113526,91084.0,91083.0,0.23155893]
[1764709046919,0.113526,91084.0,91083.0,0.001]
[1764709047154,0.33310353,91084.0,91083.0,0.001]
[1764709047378,0.35641093,91084.0,91083.0,0.001]
[1764709049056,0.67941093,91084.0,91083.0,0.001]
[1764709049650,0.78013088,91084.0,91083.0,0.001]
[1764709049857,0.01098249,91054.0,91043.0,0.00559248]
[1764709050061,0.021796,91050.0,91049.0,0.21966194]
[1764709051491,0.021796,91050.0,91049.0,0.22266194]
[1764709051906,0.04864,91050.0,91049.0,0.22266194]
[1764709052119,0.070436,91050.0,91049.0,0.003]
[1764709052324,0.070436,91050.0,91049.0,0.004]
[1764709052325,0.09174,91050.0,91049.0,0.004]
[1764709052955,0.09174,91050.0,91048.0,0.21966207]
[1764709053169,0.021796,91054.0,91051.0,0.01098285]
[1764709053573,0.01472,91052.0,91051.0,0.01098285]
[1764709053986,0.0914,91052.0,91051.0,0.23063996]
[1764709054207,0.0914,91052.0,91051.0,0.01098285]
[1764709054426,0.0914,91052.0,91051.0,0.001]
[1764709054662,0.021796,91047.0,91046.0,0.01098345]
[1764709054889,0.113766,91047.0,91046.0,0.23065182]
[1764709055305,0.042236,91047.0,91046.0,0.23065182]
[1764709055516,0.021796,91047.0,91046.0,0.23065182]
[1764709055975,0.021796,91059.0,91058.0,0.01098201]
[1764709056190,0.039196,91059.0,91058.0,0.23062223]
[1764709056407,0.045796,91059.0,91058.0,0.23062223]
[1764709056834,0.118076,91059.0,91058.0,0.23062223]
[1764709060835,0.045796,91059.0,91058.0,0.23062223]
[1764709061052,0.021796,91059.0,91058.0,0.23062223]
[1764709062269,0.046286,91059.0,91058.0,0.23062223]
[1764709062684,0.021796,91056.0,91055.0,0.01098237]
[1764709062858,0.23062247,91058.0,91054.0,0.21964767]
[1764709063063,0.07276,91058.0,91057.0,0.21964264]
[1764709063263,0.021796,91058.0,91057.0,0.21964264]
[1764709063432,0.045796,91058.0,91057.0,0.21964264]
[1764709063630,0.024,91058.0,91057.0,0.21964264]
[1764709063881,0.045796,91058.0,91057.0,0.21964264]
[1764709064081,0.045796,91058.0,91040.0,0.97830107]
[1764709064082,0.021796,91050.0,91040.0,0.97830107]
[1764709064286,0.021796,91050.0,91049.0,0.23064503]
[1764709064287,0.062156,91050.0,91049.0,0.23064503]
[1764709064949,0.021796,91050.0,91049.0,0.23064503]
[1764709065700,0.021796,91050.0,91049.0,0.23364503]
[1764709066664,0.02581,91061.0,91060.0,0.2196354]
[1764709067084,0.04981,91061.0,91060.0,0.2196354]
[1764709067304,0.01098056,91070.0,91060.0,0.2196354]
[1764709067305,0.021796,91072.0,91071.0,0.01098044]
[1764709067519,0.04011348,91089.0,91078.0,0.01097959]
[1764709067520,0.021796,91083.0,91078.0,0.01097959]
[1764709067723,0.021796,91083.0,91082.0,0.21958235]
[1764709068138,0.072656,91083.0,91082.0,0.21958235]
[1764709068340,0.02837851,91087.0,91082.0,0.24794247]
[1764709068341,0.0174,91087.0,91082.0,0.24794247]
[1764709068589,0.01676,91092.0,91091.0,0.21956065]
[1764709068787,0.038556,91092.0,91091.0,0.21956065]
[1764709069401,0.0174,91102.0,91101.0,0.21953655]
[1764709069596,0.039196,91102.0,91101.0,0.21953655]
[1764709069813,0.021796,91098.0,91097.0,0.23052349]
[1764709070255,0.072656,91098.0,91097.0,0.23052349]
[1764709071445,0.021796,91091.0,91090.0,0.23054076]
[1764709071667,0.021796,91091.0,91080.0,0.94050107]
[1764709071668,0.021796,91081.0,91080.0,1.17106759]
[1764709071871,0.021796,91081.0,91080.0,0.23056652]
[1764709073441,0.11696508,91091.0,91080.0,0.23056652]
[1764709073442,0.02128,91090.0,91087.0,0.21957004]
[1764709073626,0.043076,91090.0,91089.0,0.21956547]
[1764709073833,0.115836,91090.0,91089.0,0.21956547]
[1764709074059,0.139836,91090.0,91089.0,0.21956547]
[1764709074887,0.140836,91090.0,91089.0,0.21956547]
[1764709075517,0.001,91090.0,91089.0,0.21956547]
[1764709075941,0.022796,91090.0,91089.0,0.21956547]
[1764709076149,0.044076,91090.0,91089.0,0.21956547]
[1764709077436,0.068076,91090.0,91089.0,0.21956547]
[1764709078204,0.140356,91090.0,91089.0,0.21956547]
[1764709078610,0.068076,91090.0,91089.0,0.21956547]
[1764709078997,0.068076,91090.0,91087.0,0.21957004]
[1764709078998,0.021796,91082.0,91081.0,0.23056333]
[1764709079224,0.021796,91085.0,91084.0,0.01097887]
[1764709079555,0.046286,91085.0,91084.0,0.23055479]
[1764709080419,0.021796,91085.0,91084.0,0.23055479]
[1764709080639,0.02128,91112.0,91084.0,0.23055479]
[1764709080640,0.0004,91110.0,91109.0,0.21951728]
[1764709080919,0.00051607,91110.0,91109.0,0.21951728]
[1764709081579,0.02231207,91110.0,91109.0,0.21951728]
[1764709082053,0.02231207,91110.0,91107.0,0.23049645]
[1764709082054,0.021796,91108.0,91107.0,0.23049645]
[1764709083877,0.021796,91095.0,91073.0,0.07246]
[1764709084102,0.021796,91094.0,91093.0,0.23053362]
[1764709085184,0.021796,91094.0,91093.0,0.23253362]
[1764709085784,0.00051607,91110.0,91107.0,0.0109761]
[1764709086101,0.00051607,91110.0,91109.0,0.30044728]
[1764709086332,0.00051607,91110.0,91108.0,0.21951969]
[1764709086333,0.00051607,91110.0,91108.0,0.07356]
[1764709086506,0.02231207,91110.0,91109.0,0.01355412]
[1764709087274,0.02231207,91110.0,91109.0,0.05946412]
[1764709087275,0.00051607,91110.0,91109.0,0.05946412]
[1764709087472,0.00051607,91110.0,91109.0,0.13302412]
[1764709089146,0.00051607,91110.0,91109.0,0.01355412]
[1764709089377,0.02231207,91110.0,91109.0,0.01355412]
[1764709089584,0.021796,91109.0,91108.0,0.21951867]
[1764709090289,0.021796,91109.0,91108.0,0.26542867]
[1764709091119,0.0004,91130.0,91119.0,0.54249319]
[1764709091324,0.0005868,91120.0,91119.0,0.71438319]
[1764709092339,0.0005868,91120.0,91119.0,0.77690618]
[1764709095554,0.0004,91130.0,91129.0,0.5424691]
[1764709095726,0.0004,91130.0,91129.0,0.68592209]
[1764709095927,0.0004,91130.0,91129.0,0.75948209]
[1764709096162,1e-08,91130.0,91129.0,0.75948209]
[1764709096370,0.02581,91168.0,91129.0,0.75948209]
[1764709096371,1e-08,91135.0,91134.0,0.65089005]
[1764709096577,1e-08,91135.0,91134.0,0.74185005]
[1764709096718,0.0004,91170.0,91149.0,0.54242094]
[1764709096927,0.00040597,91150.0,91149.0,0.64075094]
[1764709097131,0.00040597,91150.0,91149.0,0.71431094]
[1764709098233,0.00040597,91150.0,91149.0,0.77683393]
[1764709098826,0.00040597,91150.0,91149.0,0.75943393]
[1764709099061,0.00040597,91150.0,91149.0,0.77683393]
[1764709100009,1e-08,91150.0,91149.0,0.77683393]
[1764709100945,0.0004,91170.0,91169.0,0.21937281]
[1764709101065,0.0004,91170.0,91169.0,0.29914516]
[1764709101270,0.0004,91170.0,91169.0,0.43522815]
[1764709101677,0.0004,91170.0,91169.0,0.4187658]
[1764709101871,0.0004,91170.0,91169.0,0.37270516]
[1764709102370,0.0004,91170.0,91169.0,0.37470516]
[1764709102588,0.00142845,91170.0,91169.0,0.37470516]
[1764709103265,0.00142845,91170.0,91169.0,0.37570516]
[1764709104976,0.00142845,91170.0,91169.0,0.35830516]
[1764709105178,0.00142845,91170.0,91169.0,0.37570516]
[1764709105591,0.00142845,91170.0,91169.0,0.76122815]
[1764709105825,0.0004,91180.0,91179.0,0.54234875]
[1764709105974,0.0004,91180.0,91179.0,0.64067875]
[1764709106202,0.0004,91180.0,91179.0,0.69683875]
[1764709106406,0.0004,91180.0,91179.0,0.71423875]
[1764709107028,0.0004,91180.0,91179.0,0.71623875]
[1764709107974,0.0004,91180.0,91179.0,0.77976174]
[1764709111595,0.00069375,91180.0,91179.0,0.77976174]
[1764709111760,0.00069375,91180.0,91179.0,0.77876174]
[1764709111955,0.00069375,91180.0,91179.0,0.77976174]
[1764709112239,0.01024259,91199.0,91189.0,0.21932469]
[1764709112442,0.01024259,91199.0,91189.0,0.67368389]
[1764709112671,0.01024259,91199.0,91189.0,0.74171768]
[1764709113230,1e-08,91190.0,91189.0,0.74171768]
[1764709115016,0.00100001,91190.0,91189.0,0.74171768]
[1764709116270,0.00100001,91190.0,91189.0,0.66179469]
[1764709116483,0.00100001,91190.0,91189.0,0.35615469]
[1764709117340,0.00100001,91190.0,91189.0,0.26523469]
[1764709117543,0.00100001,91190.0,91189.0,0.34971469]
[1764709117690,0.00100001,91190.0,91189.0,0.26523469]
[1764709117894,0.00029372,91190.0,91189.0,0.34971469]
[1764709118318,0.00029372,91190.0,91189.0,0.35071469]
[1764709118518,0.00029372,91190.0,91189.0,0.35371469]
[1764709119256,0.00029372,91190.0,91189.0,0.33635469]
[1764709119453,0.00029372,91190.0,91189.0,0.35371469]
[1764709119754,0.00029372,91190.0,91189.0,0.22332469]
[1764709120736,0.00029372,91190.0,91189.0,0.21932469]
[1764709121119,0.00029372,91190.0,91189.0,0.22032469]
[1764709123284,0.05884972,91190.0,91189.0,0.001]
[1764709123600,0.02208972,91190.0,91189.0,0.22032469]
[1764709123919,0.05884972,91190.0,91189.0,0.22032469]
[1764709124120,0.02208972,91190.0,91189.0,0.22032469]
[1764709124364,0.02208972,91190.0,91189.0,0.21932469]
[1764709124758,0.00029372,91190.0,91189.0,0.22032469]
[1764709124921,0.00029372,91190.0,91189.0,0.33211469]
[1764709125138,0.00029372,91190.0,91189.0,0.26499469]
[1764709125568,0.00029372,91190.0,91189.0,0.33211469]
[1764709125770,0.00029372,91190.0,91189.0,0.33111469]
[1764709126773,0.00029372,91190.0,91189.0,0.34847469]
[1764709126982,0.00029372,91190.0,91189.0,0.34947469]
[1764709127205,0.00029372,91190.0,91189.0,0.34847469]
[1764709127386,0.00029372,91190.0,91189.0,0.35047469]
[1764709127899,0.00029372,91190.0,91189.0,0.41399768]
[1764709128463,0.00029372,91190.0,91189.0,0.26683469]
[1764709128662,0.00029372,91190.0,91189.0,0.28419469]
[1764709128875,0.00029372,91190.0,91189.0,0.35131469]
[1764709129522,0.00029372,91190.0,91189.0,0.35031469]
[1764709129748,0.00029372,91190.0,91189.0,0.67331469]
[1764709129951,0.00029372,91190.0,91189.0,0.70167481]
[1764709130181,0.00029372,91190.0,91189.0,0.67331469]
[1764709130627,0.00029372,91190.0,91189.0,0.67431469]
[1764709132089,0.00029372,91190.0,91189.0,0.33395469]
[1764709132299,0.00029372,91190.0,91189.0,0.35131469]
[1764709134347,0.00029372,91190.0,91189.0,0.41383768]
[1764709134580,0.00029372,91190.0,91189.0,0.33395469]
[1764709134784,0.00029372,91190.0,91189.0,0.35131469]
[1764709136982,0.00029372,91190.0,91189.0,0.38749469]
[1764709137531,0.00029372,91190.0,91189.0,0.71049469]
[1764709137733,0.00029372,91190.0,91189.0,0.77301768]
[1764709139804,0.0002,91200.0,91189.0,0.77301768]
[1764709139805,1e-08,91200.0,91199.0,0.04467]
[1764709140014,1e-08,91200.0,91199.0,0.43019299]
[1764709140213,0.02913521,91245.0,91219.0,0.54225256]
[1764709140446,0.00058642,91220.0,91219.0,0.64046256]
[1764709140640,0.00058642,91220.0,91219.0,0.36722256]
[1764709140843,0.02238242,91220.0,91219.0,0.31746256]
[1764709141059,0.00058642,91220.0,91219.0,0.30010256]
[1764709141259,0.00058642,91220.0,91202.0,0.01096467]
[1764709141260,0.12757642,91220.0,91202.0,0.01096467]
[1764709141431,0.12757642,91220.0,91184.0,0.21933672]
[1764709141432,0.021796,91185.0,91184.0,0.21933672]
[1764709141651,0.032236,91184.0,91180.0,0.01096731]
[1764709141854,0.021796,91182.0,91180.0,0.01096731]
[1764709142059,0.03676,91181.0,91179.0,0.21934783]
[1764709142262,0.00068,91179.0,91176.0,0.01096779]
[1764709142464,0.01044,91184.0,91178.0,0.01096755]
[1764709142601,0.01044,91184.0,91178.0,0.21935115]
[1764709142807,0.01044,91184.0,91182.0,0.21934061]
[1764709143024,0.01044,91184.0,91182.0,0.21934153]
[1764709143230,0.03676,91183.0,91180.0,0.01096731]
[1764709143440,0.21935225,91178.0,91176.0,0.00011599]
[1764709143793,0.35905,91177.0,91176.0,0.00011599]
[1764709143978,0.35905,91177.0,91145.0,0.01097152]
[1764709143979,0.2303822,91153.0,91144.0,0.01097164]
[1764709144132,0.00107,91152.0,91149.0,0.01097104]
[1764709144476,0.00107,91152.0,91144.0,0.01097164]
[1764709144477,0.01097225,91139.0,91131.0,0.21946428]
[1764709144655,0.06287,91132.0,91131.0,0.23055346]
[1764709145397,0.34994187,91132.0,91131.0,0.00011597]
[1764709145609,0.13048,91132.0,91131.0,0.00011597]
[1764709146466,0.06287,91132.0,91131.0,0.00011597]
[1764709146681,0.12922,91132.0,91131.0,0.00011597]
[1764709147300,0.36608187,91132.0,91131.0,0.00011597]
[1764709147506,0.68908187,91132.0,91131.0,0.00011597]
[1764709147712,0.46962,91132.0,91131.0,0.00011597]
[1764709147926,0.08027,91132.0,91131.0,0.00011597]
[1764709148129,0.14662,91132.0,91131.0,0.00011597]
[1764709148350,0.06287,91132.0,91131.0,0.00011597]
[1764709148521,0.01597,91132.0,91131.0,0.21958025]
[1764709148739,0.01697,91132.0,91131.0,0.00011597]
[1764709148924,0.0616,91132.0,91131.0,0.00011597]
[1764709149124,0.0626,91132.0,91131.0,0.00011597]
[1764709149330,0.002,91132.0,91131.0,0.04332597]
[1764709149560,0.002,91132.0,91131.0,0.00011597]
[1764709149762,0.002,91132.0,91131.0,1.74e-05]
[1764709150029,0.002,91132.0,91130.0,0.2194261]
[1764709150235,0.002,91132.0,91129.0,0.01097345]
[1764709150236,0.02241,91141.0,91138.0,0.01097237]
[1764709150414,0.02252578,91141.0,91139.0,0.21944502]
[1764709150616,0.02252578,91141.0,91138.0,0.01097237]
[1764709150617,0.02252578,91141.0,91138.0,0.23041761]
[1764709150821,0.02252578,91141.0,91139.0,0.21944286]
[1764709151229,0.02252578,91141.0,91134.0,0.21945485]
[1764709151230,0.02252578,91141.0,91134.0,0.01097285]
[1764709151431,0.02252578,91141.0,91123.0,0.23045562]
[1764709151432,0.01097285,91134.0,91123.0,0.23045562]
[1764709151642,0.00107,91133.0,91132.0,0.21946187]
[1764709152023,0.00107,91133.0,91132.0,0.21873187]
[1764709152223,0.02252578,91141.0,91136.0,0.01097261]
[1764709152479,0.02252578,91141.0,91130.0,0.01097333]
[1764709152480,0.04198,91137.0,91123.0,0.01097417]
[1764709152590,0.323,91133.0,91124.0,0.01097405]
[1764709152951,0.06635,91134.0,91132.0,0.21946012]
[1764709153105,0.3404,91140.0,91135.0,0.01097273]
[1764709153314,0.04198,91133.0,91130.0,0.63954955]
[1764709153523,0.04157,91131.0,91128.0,0.01097357]
[1764709153784,0.323,91138.0,91135.0,0.01097273]
[1764709153910,0.02252578,91141.0,91131.0,0.01097321]
[1764709153911,0.04198,91136.0,91131.0,0.01097321]
[1764709154111,0.002,91134.0,91132.0,0.21945987]
[1764709154313,0.02252578,91141.0,91140.0,0.21944261]
[1764709155396,0.04209578,91141.0,91135.0,0.01097273]
[1764709155572,0.04209578,91141.0,91132.0,0.01197309]
[1764709155573,0.0642,91136.0,91132.0,0.001]
[1764709155787,0.01957,91136.0,91134.0,0.21945531]
[1764709156346,0.01957,91136.0,91134.0,0.21945706]
[1764709157221,0.04463,91135.0,91130.0,0.65052288]
[1764709157423,0.04463,91135.0,91049.0,0.01106833]
[1764709157424,0.04419,91131.0,91125.0,0.21947752]
[1764709157598,0.0011,91130.0,91129.0,0.21946798]
[1764709158515,0.02742791,91148.0,91139.0,0.21944344]
[1764709158717,0.00011578,91141.0,91139.0,0.21944344]
[1764709159299,0.01097225,91139.0,91135.0,0.01097273]
[1764709159571,0.0642,91136.0,91135.0,0.01097273]
[1764709159878,0.02241,91139.0,91138.0,0.2304198]
[1764709160081,0.04198,91136.0,91134.0,0.21945706]
[1764709160241,0.00066,91134.0,91133.0,0.01097297]
[1764709161233,0.02241,91139.0,91137.0,0.21944983]
[1764709161642,0.00011578,91141.0,91138.0,0.01097237]
[1764709161843,0.00011578,91141.0,91140.0,0.21944261]
[1764709162253,0.10819578,91141.0,91136.0,0.01097261]
[1764709162455,0.0642,91137.0,91134.0,0.23042728]
[1764709162672,0.02743153,91136.0,91135.0,0.21945256]
[1764709162852,0.02743153,91136.0,91134.0,0.01097285]
[1764709162853,0.04463,91135.0,91130.0,0.63954955]
[1764709163061,0.09372153,91136.0,91130.0,0.63954955]
[1764709163062,0.04463,91131.0,91130.0,0.63954955]
[1764709163267,0.04463,91131.0,91129.0,0.23044047]
[1764709163268,0.01097417,91123.0,91120.0,0.63954955]
[1764709163470,0.06202,91121.0,91120.0,0.21948881]
[1764709163865,0.01739,91121.0,91120.0,0.21948881]
[1764709164071,0.0174,91129.0,91126.0,0.01097381]
[1764709164322,0.0174,91129.0,91126.0,0.23044862]
[1764709164529,0.0174,91129.0,91125.0,0.21947797]
[1764709164530,0.04198,91127.0,91125.0,0.21947797]
[1764709165777,0.01957,91137.0,91133.0,0.01097297]
[1764709166006,0.06635,91136.0,91134.0,0.23042858]
[1764709166406,0.01957,91137.0,91136.0,0.21945224]
[1764709166609,0.06635,91136.0,91134.0,0.01097285]
[1764709166815,0.06635,91136.0,91133.0,0.21945942]
[1764709166816,0.04198,91135.0,91133.0,0.21945942]
[1764709167015,0.00042,91134.0,91133.0,0.21945942]
[1764709167418,0.01957,91137.0,91135.0,0.21945465]